lending/lending_fUSD_20251018
["ID","MTS","AMOUNT","RATE_DAILY","PERIOD"]
[391787030,1760813441496,-754.81813232,0.00032318,2]
[391787031,1760813441505,-1101.57346366,0.00032318,2]
[391787032,1760813441514,-500.0,0.00032328,2]
[391787033,1760813441523,-542.05,0.00032328,2]
[391787034,1760813441533,-754.81813232,0.00032337,2]
[391787035,1760813441542,-1101.57346366,0.00032337,2]
[391787036,1760813441552,-167.0218118,0.00032341,2]
[391787037,1760813441566,-754.81813232,0.00032355,2]
[391787038,1760813441579,-1101.57346366,0.00032355,2]
[391787039,1760813441590,-501.42950704,0.00032373,5]
[391787040,1760813441600,-200.0,0.00032373,5]
[391787041,1760813441610,-754.81813232,0.00032373,2]
[391787042,1760813441621,-1101.57346366,0.00032373,2]
[391787043,1760813441632,-167.0218118,0.00032383,2]
[391787044,1760813441642,-305.85376212,0.0003239,2]
[391787045,1760813441652,-150.35,0.0003239,2]
[391787046,1760813441661,-754.81813232,0.00032392,2]
[391787047,1760813441671,-1101.57346366,0.00032392,2]
[391787048,1760813441681,-500.0,0.00032398,2]
[391787049,1760813441690,-500.0,0.00032398,2]
[391787050,1760813441700,-500.0,0.00032398,2]
[391787051,1760813441710,-514.93363163,0.00032398,2]
[391787052,1760813441720,-552.53660212,0.00032398,2]
[391787053,1760813441729,-500.0,0.00032398,2]
[391787054,1760813441738,-218.26,0.00032398,2]
[391787055,1760813441748,-500.0,0.00032398,2]
[391787056,1760813441757,-500.0,0.00032398,2]
[391787057,1760813441767,-166.8279299,0.00032399,2]
[391787058,1760813441776,-233.96261239,0.00032399,2]
[391787059,1760813441785,-500.0,0.00032399,2]
[391787060,1760813441794,-192.32582669,0.00032399,2]
[391787061,1760813441803,-500.0,0.00032399,2]
[391787062,1760813441814,-1239.6,0.00032399,2]
[391787063,1760813441825,-1461.42,0.00032399,2]
[391787064,1760813441836,-500.0,0.00032399,2]
[391787065,1760813441847,-300.0,0.00032399,2]
[391787066,1760813441856,-500.0,0.00032399,2]
[391787067,1760813441865,-500.0,0.00032399,2]
[391787068,1760813441875,-500.0,0.00032399,2]
[391787069,1760813441884,-500.0,0.00032399,2]
[391787070,1760813441895,-5822.46,0.00032399,2]
[391787071,1760813441905,-1000.0,0.00032399,2]
[391787072,1760813441914,-500.0,0.00032399,2]
[391787073,1760813441924,-500.0,0.00032399,2]
[391787074,1760813441933,-3296.04,0.00032399,2]
[391787075,1760813441943,-500.0,0.00032399,2]
[391787076,1760813441952,-709.55,0.00032399,2]
[391787077,1760813441961,-500.0,0.00032399,2]
[391787078,1760813441972,-500.0,0.00032399,2]
[391787079,1760813441982,-476820.64385875,0.000324,4]
[391787084,1760813442940,-902.0,0.00032196,2]
[391787085,1760813442949,-9769.74358992,0.000324,4]
[391787086,1760813442989,-547.925209,0.000324,4]
[391787087,1760813443001,-952.60709163,0.000324,4]
[391787088,1760813443065,-4556.03361407,0.000324,4]
[391787089,1760813443098,-3652.600003,0.000324,4]
[391787090,1760813443110,-544.30471402,0.000324,4]
[391787091,1760813446096,-746.38213464,0.000324,4]
[391787092,1760813446107,-3067.91768901,0.000324,4]
[391787093,1760813446117,-136.56556739,0.000324,4]
[391787094,1760813446131,-1014.11750025,0.000324,4]
[391787095,1760813446144,-2210.94890372,0.000324,4]
[391787096,1760813446156,-761.59000005,0.000324,4]
[391787097,1760813446167,-511.05,0.000324,4]
[391787098,1760813446178,-309.249945,0.000324,4]
[391787099,1760813446252,-15779.11089671,0.000324,4]
[391787100,1760813446306,-1129.05612228,0.000324,4]
[391787102,1760813585097,411.01347424,0.00018384,120]
[391787106,1760813720262,-182.8,0.00016712,2]
[391787107,1760813720287,-16.38036291,0.000168,2]
[391787108,1760813723852,-251.73414428,0.000168,2]
[391787119,1760813870259,-272.55,0.0001565,2]
[391787120,1760813872411,-226.9445119,0.0001565,2]
[391787121,1760813875119,-133.3954881,0.0001565,2]
[391787122,1760813875145,-75.51978675,0.00016474,2]
[391787123,1760813878289,-173.87075851,0.00016474,2]
[391787124,1760813879806,-293.74753492,0.00016474,2]
[391787125,1760814037417,10418.29869,0.00032774,60]
[391787126,1760814037871,10418.29869,0.00032774,60]
[391787127,1760814038891,10418.29869,0.00032774,60]
[391787128,1760814039172,10418.29869,0.00032774,60]
[391787129,1760814039595,10418.29869,0.00032774,60]
[391787130,1760814152751,279.23,0.00013699,2]
[391787136,1760814507481,962.32,0.00024724,120]
[391787137,1760814507703,962.32,0.00027814,120]
[391787140,1760814632136,-1393.57832831,0.00016324,2]
[391787141,1760814632146,-195.0,0.00016381,2]
[391787142,1760814632156,-500.0,0.00016438,2]
[391787143,1760814632167,-89.75191982,0.00016474,2]
[391787144,1760814632179,-150.0,0.00016474,2]
[391787145,1760814632190,-195.0,0.00016502,2]
[391787146,1760814632199,-151.0,0.000168,2]
[391787147,1760814632208,-245.66979187,0.00017,2]
[391787148,1760814632293,-4.33020813,0.00017,2]
[391787149,1760814632305,-632.89,0.00017297,2]
[391787150,1760814632321,-191.42379187,0.00017534,2]
[391787157,1760814638100,-241.69544312,0.00017534,2]
[391787158,1760814638110,-251.93352763,0.00017914,2]
[391787159,1760814638125,-248.06647237,0.00017914,2]
[391787160,1760814638135,-500.0,0.00017914,2]
[391787161,1760814638144,-284.93751373,0.00017914,2]
[391787162,1760814638154,-1135.36076835,0.00017955,2]
[391787163,1760814638259,-64.63923165,0.00017955,2]
[391787164,1760814638268,-300.0,0.00017955,2]
[391787165,1760814638278,-2500.0,0.00017956,2]
[391787166,1760814638288,-500.0,0.00017956,2]
[391787167,1760814638298,-179.26036835,0.00017956,2]
[391787168,1760814640138,-80.25640858,0.00017956,2]
[391787169,1760814640150,-967.36713508,0.00017956,2]
[391787170,1760814640168,-1532.63286492,0.00017956,2]
[391787171,1760814640178,-191.16924802,0.00017956,2]
[391787172,1760814640187,-568.0059748,0.00017956,2]
[391787173,1760814640198,-195.0,0.00017956,2]
[391787174,1760814640207,-300.0,0.00017956,2]
[391787175,1760814640220,-305.15013849,0.00017956,2]
[391787176,1760814640232,-250.0,0.00017956,2]
[391787177,1760814640241,-1200.0,0.00018009,2]
[391787178,1760814640251,-433.0,0.0001801,2]
[391787179,1760814640262,-250.0,0.00018011,2]
[391787180,1760814640271,-300.0,0.00018011,2]
[391787181,1760814640281,-250.0,0.00018011,2]
[391787182,1760814640291,-741.18629719,0.00018011,2]
[391787183,1760814640300,-195.0,0.00018039,2]
[391787184,1760814640311,-300.0,0.00018039,2]
[391787185,1760814640320,-300.0,0.00018039,2]
[391787186,1760814640330,-151.0,0.0001811,2]
[391787187,1760814640339,-500.0,0.0001811,2]
[391787188,1760814640348,-183.28498649,0.0001811,2]
[391787189,1760814640358,-151.0,0.0001811,2]
[391787190,1760814640370,-151.0,0.0001811,2]
[391787191,1760814640381,-151.0,0.0001811,2]
[391787192,1760814640392,-151.0,0.0001811,2]
[391787193,1760814640402,-151.0,0.0001811,2]
[391787194,1760814640411,-151.0,0.0001811,2]
[391787195,1760814640425,-151.0,0.0001811,2]
[391787196,1760814640435,-151.0,0.0001811,2]
[391787197,1760814640447,-151.0,0.0001811,2]
[391787198,1760814640458,-151.0,0.0001811,2]
[391787200,1760814640467,-151.0,0.0001811,2]
[391787202,1760814640477,-151.0,0.0001811,2]
[391787203,1760814640486,-151.0,0.0001811,2]
[391787204,1760814640495,-151.0,0.0001811,2]
[391787205,1760814640504,-151.0,0.0001811,2]
[391787206,1760814640513,-151.0,0.0001811,2]
[391787207,1760814640521,-151.0,0.0001811,2]
[391787208,1760814640530,-151.0,0.0001811,2]
[391787209,1760814640540,-151.0,0.0001811,2]
[391787210,1760814640549,-151.0,0.0001811,2]
[391787211,1760814640558,-151.0,0.0001811,2]
[391787215,1760814640769,-151.0,0.0001811,2]
[391787216,1760814640779,-151.0,0.0001811,2]
[391787217,1760814640789,-151.0,0.0001811,2]
[391787218,1760814640799,-151.0,0.0001811,2]
[391787219,1760814640808,-151.0,0.0001811,2]
[391787220,1760814640817,-151.0,0.0001811,2]
[391787221,1760814640827,-151.0,0.0001811,2]
[391787222,1760814640836,-73.31545111,0.0001811,2]
[391787223,1760814640849,-77.68454889,0.0001811,2]
[391787224,1760814640859,-236.48584891,0.00018121,2]
[391787225,1760814640870,-396.40415109,0.00018121,2]
[391787226,1760814640880,-148.50368534,0.00018462,2]
[391787227,1760814640894,-613.12887105,0.00018462,2]
[391787228,1760814640906,-238.36744361,0.00018462,2]
[391787229,1760814640915,-632.89,0.00018945,2]
[391787230,1760814640925,-300.0,0.00019,2]
[391787231,1760814640935,-748.30982139,0.0001901,2]
[391787232,1760814640951,-251.69017861,0.0001901,2]
[391787233,1760814640963,-1680.0,0.00019689,2]
[391787234,1760814640972,-632.89,0.00019769,2]
[391787235,1760814640981,-279.23,0.00020187,2]
[391787236,1760814640991,-632.89,0.00020592,2]
[391787237,1760814641002,-632.89,0.00021416,2]
[391787238,1760814641012,-1504.0,0.00021589,2]
[391787239,1760814641022,-632.89,0.0002224,2]
[391787240,1760814641032,-632.89,0.00023063,2]
[391787241,1760814641042,-632.89,0.00023887,2]
[391787242,1760814641051,-475.25101356,0.00024515,2]
[391787243,1760814641060,-632.89,0.00024711,2]
[391787244,1760814641070,-160.0,0.00024728,2]
[391787245,1760814641079,-401.15,0.00024768,2]
[391787246,1760814641088,-500.0,0.00024932,2]
[391787247,1760814641097,-166.66,0.00025477,2]
[391787248,1760814641107,-632.89,0.00025534,2]
[391787249,1760814641116,-1000.0,0.00025559,2]
[391787250,1760814641126,-500.0,0.00026031,2]
[391787251,1760814641135,-256.84,0.00026143,2]
[391787252,1760814641146,-632.89,0.00026358,2]
[391787253,1760814641155,-279.23,0.00026676,2]
[391787254,1760814641166,-918.025,0.00026874,14]
[391787255,1760814641183,-632.89,0.00027182,2]
[391787256,1760814641192,-2257.17715863,0.00027968,2]
[391787257,1760814641203,-16773.72,0.00027969,2]
[391787258,1760814641212,-632.89,0.00028006,2]
[391787259,1760814641224,-1000.0,0.00028586,2]
[391787260,1760814641234,-154.04,0.00028666,2]
[391787261,1760814641244,-1000.0,0.00028754,2]
[391787262,1760814641255,-632.89,0.00028829,2]
[391787263,1760814641264,-632.89,0.00029653,2]
[391787264,1760814641274,-166.66,0.00029682,2]
[391787265,1760814641284,-632.89,0.00030477,2]
[391787266,1760814641294,-1029.638,0.00030562,2]
[391787267,1760814641303,-319.252,0.00030562,2]
[391787268,1760814641312,-962.32,0.00030905,120]
[391787269,1760814641323,-500.0,0.00031098,7]
[391787270,1760814641340,-632.89,0.000313,2]
[391787271,1760814641352,-2751.0,0.00031427,120]
[391787272,1760814641362,-578.48104662,0.00031588,2]
[391787273,1760814641372,-150.0,0.0003182,2]
[391787274,1760814641382,-546.62,0.0003182,2]
[391787275,1760814641391,-300.0,0.0003182,2]
[391787276,1760814641401,-150.0,0.0003182,2]
[391787277,1760814641411,-412.69,0.0003182,2]
[391787278,1760814641420,-546.62,0.0003182,2]
[391787279,1760814641430,-150.0,0.0003182,2]
[391787280,1760814641439,-1774.23,0.0003182,2]
[391787281,1760814641449,-150.0,0.0003182,2]
[391787282,1760814641459,-336.34,0.0003182,2]
[391787283,1760814641468,-1000.0,0.00031948,2]
[391787284,1760814641479,-154.04,0.00032091,2]
[391787285,1760814641489,-2111.61126599,0.000321,2]
[391787286,1760814641498,-1000.0,0.000323,2]
[391787287,1760814641508,-2170.54897308,0.000323,2]
[391787288,1760814641518,-5000.0,0.000323,2]
[391787289,1760814641527,-1020.13530307,0.000323,2]
[391787290,1760814641537,-194.34203111,0.000323,15]
[391787291,1760814641546,-2170.54897301,0.00032318,2]
[391787292,1760814641556,-1020.135303,0.00032318,2]
[391787293,1760814641567,-2170.54897301,0.00032337,2]
[391787294,1760814641577,-1020.135303,0.00032337,2]
[391787295,1760814641587,-5765.5888081,0.00032351,2]
[391787296,1760814641597,-1035.2580657,0.00032351,2]
[391787297,1760814641606,-38036.1410001,0.00032351,2]
[391787298,1760814641615,-2170.54897301,0.00032355,2]
[391787299,1760814641626,-1020.135303,0.00032355,2]
[391787300,1760814641635,-500.0,0.00032367,2]
[391787301,1760814641645,-2170.54897301,0.00032373,2]
[391787302,1760814641654,-1020.135303,0.00032373,2]
[391787303,1760814641664,-92958.79227289,0.00032373,2]
[391787304,1760814641673,-194.34203111,0.00032383,15]
[391787305,1760814641682,-878.41,0.0003239,3]
[391787306,1760814641692,-2170.54897301,0.00032392,2]
[391787307,1760814641701,-1020.135303,0.00032392,2]
[391787308,1760814641711,-1000.0,0.00032399,14]
[391787309,1760814641725,-500.0,0.00032399,2]
[391787310,1760814641736,-294.4887965,0.00032399,2]
[391787311,1760814641746,-500.0,0.00032399,2]
[391787312,1760814641757,-1187.95,0.00032399,2]
[391787313,1760814641767,-500.0,0.00032399,2]
[391787314,1760814641776,-1400.53,0.00032399,2]
[391787315,1760814641786,-500.0,0.00032399,2]
[391787316,1760814641795,-500.0,0.00032399,2]
[391787317,1760814641806,-500.0,0.00032399,2]
[391787318,1760814641816,-214.93923477,0.00032399,2]
[391787319,1760814641826,-300.0,0.00032399,2]
[391787320,1760814641835,-500.0,0.00032399,2]
[391787321,1760814641847,-500.0,0.00032399,2]
[391787322,1760814641856,-500.0,0.00032399,2]
[391787323,1760814641866,-500.0,0.00032399,2]
[391787324,1760814641875,-500.0,0.00032399,2]
[391787325,1760814641885,-772.39263,0.00032399,2]
[391787326,1760814641895,-500.0,0.00032399,2]
[391787327,1760814641905,-1000.0,0.00032399,2]
[391787328,1760814641914,-500.0,0.00032399,2]
[391787329,1760814641924,-5579.86,0.00032399,2]
[391787330,1760814641934,-500.0,0.00032399,2]
[391787331,1760814641943,-500.0,0.00032399,2]
[391787332,1760814641952,-2105.8,0.00032399,2]
[391787333,1760814641962,-679.99,0.00032399,2]
[391787334,1760814641971,-484.62807868,0.00032399,2]
[391787335,1760814641981,-163.77382867,0.00032399,2]
[391787336,1760814641990,-228148.3110646,0.000324,4]
[391787337,1760814642000,-215367.47069585,0.000324,4]
[391787338,1760814642010,-500.0,0.000324,15]
[391787339,1760814642020,-17821.8689256,0.000324,2]
[391787340,1760814642029,-1447.18148813,0.000324,2]
[391787341,1760814642039,-183.57245696,0.000324,2]
[391787342,1760814642048,-300.0,0.000324,30]
[391787343,1760814642057,-300.0,0.000324,30]
[391787344,1760814642067,-400.0,0.000324,30]
[391787345,1760814642076,-157.1989806,0.0003241,2]
[391787346,1760814642086,-2170.54897301,0.0003241,2]
[391787347,1760814642100,-1020.135303,0.0003241,2]
[391787348,1760814642110,-1425.0,0.00032428,2]
[391787349,1760814642120,-2170.54897301,0.00032428,2]
[391787350,1760814642130,-1020.135303,0.00032428,2]
[391787351,1760814642140,-157.1989806,0.00032438,2]
[391787352,1760814642150,-2170.54897301,0.00032447,2]
[391787353,1760814642160,-1020.135303,0.00032447,2]
[391787354,1760814642170,-157.1989806,0.00032465,2]
[391787355,1760814642184,-2170.54897301,0.00032465,2]
[391787356,1760814642195,-1020.135303,0.00032465,2]
[391787357,1760814642204,-194.34203111,0.00032465,15]
[391787358,1760814642215,-1671.20863802,0.00032465,2]
[391787359,1760814642224,-210.2170643,0.00032465,6]
[391787360,1760814642234,-150.0,0.00032468,7]
[391787361,1760814642244,-150.0,0.00032468,7]
[391787362,1760814642255,-150.0,0.00032468,7]
[391787363,1760814642264,-150.0,0.00032468,7]
[391787364,1760814642275,-150.0,0.00032468,7]
[391787365,1760814642284,-150.0,0.00032468,7]
[391787366,1760814642294,-150.0,0.00032468,7]
[391787367,1760814642304,-150.0,0.00032468,7]
[391787368,1760814642314,-150.0,0.00032468,7]
[391787369,1760814642324,-150.0,0.00032468,7]
[391787370,1760814642334,-150.0,0.00032468,7]
[391787371,1760814642344,-150.81,0.00032468,7]
[391787372,1760814642354,-500.0,0.00032473,5]
[391787373,1760814642363,-3860.4700823,0.0003248,2]
[391787374,1760814642372,-26496.764277,0.0003248,2]
[391787375,1760814642382,-150.35,0.0003249,2]
[391787376,1760814642392,-150.35,0.0003249,2]
[391787377,1760814642402,-150.35,0.0003249,2]
[391787378,1760814642412,-150.35,0.0003249,2]
[391787379,1760814642422,-150.35,0.0003249,2]
[391787380,1760814642432,-203.90250808,0.0003249,2]
[391787381,1760814642443,-1425.0,0.00032494,2]
[391787382,1760814642453,-150.0,0.00032499,2]
[391787383,1760814642463,-503.88090225,0.00032499,2]
[391787384,1760814642472,-999.0,0.00032499,120]
[391787385,1760814642482,-273595.28707144,0.00032499,17]
[391787386,1760814642491,-1761.0,0.000325,5]
[391787387,1760814642502,-2677.31071563,0.000325,2]
[391787388,1760814642512,-712750.38655621,0.000325,4]
[391787389,1760814642530,-105589.88329835,0.000325,4]
[391787390,1760814642544,-496.16769886,0.000325,4]
[391787391,1760814642555,-1658.3178,0.000325,4]
[391787392,1760814642569,-1102.7719309,0.000325,4]
[391787393,1760814642582,-1003.32959622,0.000325,4]
[391787394,1760814642595,-553.74122683,0.000325,4]
[391787395,1760814642606,-700.0,0.000325,4]
[391787396,1760814642618,-37373.74602451,0.000325,4]
[391787397,1760814642630,-1841.4600014,0.000325,4]
[391787432,1760814643239,-270.76163892,0.00030562,2]
[391787435,1760814643251,-316.47033406,0.00030562,2]
[391787440,1760814643292,-564.39867834,0.00030562,2]
[391787446,1760814643346,-422.35189503,0.00030562,2]
[391787448,1760814646173,-972.01745365,0.00030562,2]
[391787449,1760814646183,-214.53854637,0.000325,4]
[391787450,1760814646195,-1695.13317192,0.000325,4]
[391787451,1760814646227,-1178.33797944,0.000325,4]
[391787452,1760814646495,-24917.7461537,0.000325,4]
[391787453,1760814646507,-5450.26798551,0.000325,4]
[391787455,1760815028262,195.0,0.00027425,120]
[391787456,1760815084658,2500.0,0.00027425,120]
[391787457,1760815084760,2500.0,0.00025085,120]
[391787458,1760815084862,298.60952882,0.00027857,120]
[391787460,1760815325501,1091.0,0.00016002,2]
[391787461,1760815330612,1091.0,0.00015202,2]
[391787462,1760815336341,483.992183,0.00014442,2]
[391787468,1760815508384,29054.777817,0.00015,2]
[391787469,1760815508411,4704.65678077,0.00015,2]
[391787470,1760815508437,4704.65678077,0.00015,2]
[391787471,1760815508463,4704.65678077,0.00015,2]
[391787472,1760815508487,4704.65678077,0.00015,2]
[391787473,1760815508513,4704.65678077,0.00015,2]
[391787474,1760815508539,4704.65678077,0.00015,2]
[391787475,1760815508564,4704.65678077,0.00015,2]
[391787476,1760815508587,4704.65678077,0.00015,2]
[391787477,1760815508617,4704.65678077,0.00015,2]
[391787478,1760815508641,4704.65678077,0.00015,2]
[391787479,1760815508679,4758.29,0.00015,2]
[391787480,1760815509209,-307.65148762,0.00015,2]
[391787481,1760815511647,-500.0,0.00015,2]
[391787482,1760815512241,68189.75071311,0.00032777,60]
[391787483,1760815514249,-197.56690041,0.00015,2]
[391787484,1760815517109,-422.00309959,0.00015,2]
[391787487,1760815520135,-274.37636119,0.00015,2]
[391787488,1760815524414,-353.86363881,0.00015,2]
[391787489,1760815528191,-176.3696357,0.00015,2]
[391787490,1760815529689,-172.45,0.00015,2]
[391787491,1760815532997,-289.73762311,0.00015,2]
[391787492,1760815535082,-329.83237689,0.00015,2]
[391787493,1760815538355,-182.40920469,0.00015,2]
[391787494,1760815540540,-252.91331211,0.00015,2]
[391787495,1760815542043,-163.1454749,0.00015,2]
[391787496,1760815543405,-222.65064152,0.00015,2]
[391787497,1760815546014,-161.63263787,0.00015,2]
[391787498,1760815548591,-215.38971724,0.00015,2]
[391787499,1760815565270,-179.22736028,0.00014999,2]
[391787500,1760815567969,-120.77263972,0.00014999,2]
[391787501,1760815567996,-84.89034427,0.00015,2]
[391787502,1760815573073,-417.85459193,0.00015,2]
[391787503,1760815575123,-167.60418897,0.00015,2]
[391787504,1760815577213,-181.61206179,0.00015,2]
[391787508,1760815593545,-339.23965508,0.00014999,2]
[391787509,1760815593574,-129.64110232,0.00015,2]
[391787510,1760815594211,-1645.2942396,0.00015,2]
[391787511,1760815594848,-321.59268532,0.00015,2]
[391787512,1760815595489,-623.48977516,0.00015,2]
[391787513,1760815595887,-218.51371194,0.00015,2]
[391787514,1760815597361,-170.40639918,0.00015,2]
[391787515,1760815598840,-182.35446581,0.00015,2]
[391787516,1760815601388,-163.2090389,0.00015,2]
[391787517,1760815604259,-265.68752685,0.00015,2]
[391787518,1760815606361,-290.12902328,0.00015,2]
[391787519,1760815608966,-233.00344987,0.00015,2]
[391787520,1760815617326,2407.62150803,0.000162,5]
[391787521,1760815655184,-150.0,0.00014999,2]
[391787522,1760815655208,-248.98200939,0.00014999,2]
[391787523,1760815658238,-184.95604077,0.00014999,2]
[391787524,1760815660447,-188.02723109,0.00014999,2]
[391787527,1760815662951,-325.28575186,0.00014999,2]
[391787528,1760815700156,-244.11976489,0.0001439,2]
[391787529,1760815704617,-228.94016545,0.0001439,2]
[391787530,1760815706180,-332.7721079,0.0001439,2]
[391787531,1760815709367,-228.5854843,0.0001439,2]
[391787532,1760815712670,-153.55358667,0.0001439,2]
[391787535,1760815730167,-238.96937551,0.0001439,2]
[391787536,1760815733531,-185.27190248,0.0001439,2]
[391787537,1760815736022,-302.0,0.0001439,2]
[391787538,1760815737443,-203.5260081,0.0001439,2]
[391787539,1760815740284,-374.22691484,0.0001439,2]
[391787540,1760815745019,-317.25779484,0.0001439,2]
[391787541,1760815748626,-215.4245165,0.0001439,2]
[391787555,1760815832534,-170.79218681,0.0001439,2]
[391787556,1760815832549,-252.74896689,0.00014999,2]
[391787557,1760815832561,-237.46775855,0.00014999,2]
[391787558,1760815832573,-261.59751178,0.00014999,2]
[391787559,1760815832856,-38.40248822,0.00014999,2]
[391787560,1760815832872,-300.0,0.00014999,2]
[391787561,1760815832885,-1200.0,0.00014999,2]
[391787562,1760815832898,-150.0,0.00014999,2]
[391787563,1760815832911,-500.0,0.00015,2]
[391787564,1760815832924,-53336.77520405,0.00015,2]
[391787565,1760815832940,-298.8987792,0.00015,2]
[391787566,1760815832952,-1071.75406884,0.00015,2]
[391787567,1760815832972,-792.96581108,0.00015,2]
[391787569,1760815833197,-126744.79687012,0.00015,2]
[391787572,1760815838263,-340.18642859,0.00015,2]
[391787573,1760815838371,-1296.57,0.00015,2]
[391787577,1760815840377,-372.96774103,0.00015,2]
[391787578,1760815840388,-373.19999989,0.00015,2]
[391787584,1760815840876,-1.6e-07,0.00015,2]
[391787585,1760815840888,-870.0,0.00015,2]
[391787586,1760815840900,-774120.24102046,0.00015,2]
[391787587,1760815840911,-151.0,0.0001544,2]
[391787588,1760815840921,-151.0,0.00015452,2]
[391787589,1760815840931,-500.0,0.00015493,2]
[391787590,1760815840943,-151.0,0.00015523,2]
[391787591,1760815840953,-2593.28833407,0.00015822,2]
[391787592,1760815840962,-2500.0,0.00015829,2]
[391787593,1760815840971,-195.0,0.00015829,2]
[391787594,1760815840981,-1053.76290167,0.00015922,2]
[391787595,1760815840990,-2592.37849197,0.000162,5]
[391787596,1760815841000,-420.0,0.00016416,2]
[391787597,1760815841009,-240.0,0.00016416,2]
[391787598,1760815841019,-500.0,0.00016499,2]
[391787599,1760815841027,-195.0,0.00016499,2]
[391787600,1760815841037,-1680.0,0.00016499,2]
[391787601,1760815841046,-2500.0,0.000165,2]
[391787602,1760815841055,-182.40920469,0.000165,2]
[391787603,1760815841065,-176.3696357,0.000165,2]
[391787604,1760815841075,-1484.26821636,0.000165,2]
[391787605,1760815841084,-402.17658643,0.000165,2]
[391787606,1760815841093,-1091.0,0.00016845,2]
[391787607,1760815841103,-14073.45719449,0.000175,2]
[391787608,1760815841112,-2593.288334,0.00017671,2]
[391787609,1760815841122,-1091.0,0.00017731,2]
[391787610,1760815841131,-377.8119785,0.00018,2]
[391787611,1760815841141,-1758.45033126,0.000181,2]
[391787612,1760815841151,-480.0,0.00018149,2]
[391787613,1760815841160,-1091.0,0.00018664,2]
[391787614,1760815841171,-2593.288334,0.0001952,2]
[391787615,1760815841179,-1091.0,0.00019647,2]
[391787616,1760815841190,-1091.0,0.00020681,2]
[391787617,1760815841200,-2593.288334,0.0002137,2]
[391787618,1760815841210,-7314.87792938,0.000215,2]
[391787619,1760815841219,-219.34990472,0.000215,2]
[391787620,1760815841230,-3362.72815701,0.0002168,2]
[391787621,1760815841239,-1091.0,0.00021769,2]
[391787622,1760815841248,-1091.0,0.00022915,2]
[391787623,1760815841258,-2593.288334,0.00023219,2]
[391787624,1760815841268,-1091.0,0.00024061,2]
[391787625,1760815841276,-500.0,0.00024932,2]
[391787626,1760815841286,-1389.84,0.00025031,2]
[391787627,1760815841296,-2593.288334,0.00025068,2]
[391787628,1760815841307,-171.38,0.00025239,2]
[391787629,1760815841316,-158.32181472,0.00025248,2]
[391787630,1760815841326,-500.0,0.00025248,2]
[391787631,1760815841336,-500.0,0.00025248,2]
[391787632,1760815841345,-500.0,0.00025248,2]
[391787633,1760815841355,-500.0,0.00025248,2]
[391787634,1760815841364,-182.66312407,0.00025248,2]
[391787635,1760815841373,-200.0,0.00025248,2]
[391787636,1760815841383,-151.0,0.00025248,2]
[391787637,1760815841392,-151.0,0.00025248,2]
[391787638,1760815841402,-151.0,0.00025248,2]
[391787639,1760815841411,-151.0,0.00025248,2]
[391787640,1760815841420,-151.0,0.00025248,2]
[391787641,1760815841429,-200.0,0.00025248,2]
[391787642,1760815841438,-151.0,0.00025248,2]
[391787643,1760815841447,-151.0,0.00025248,2]
[391787644,1760815841456,-151.0,0.00025248,2]
[391787645,1760815841465,-151.0,0.00025248,2]
[391787646,1760815841475,-151.0,0.00025248,2]
[391787647,1760815841484,-291.79566579,0.00025248,2]
[391787648,1760815841493,-200.0,0.00025248,2]
[391787649,1760815841504,-151.0,0.00025248,2]
[391787650,1760815841513,-151.0,0.00025248,2]
[391787651,1760815841522,-151.0,0.00025248,2]